[Event "Early-Titled-Tuesday-Blitz-September-05-2023"]
[Site "Chess.com"]
[Date "2023.09.05"]
[Round "7"]
[White "ural58"]
[Black "Dmitry_Konenkin"]
[Result "1-0"]
[WhiteElo "2523"]
[BlackElo "2394"]
[TimeControl "180+1"]
[EndTime "9:15:45 PDT"]
[Termination "ural58 won by resignation"]

1. e4 {[%clk 0:02:43.4]} 1... d6 {[%clk 0:02:59.9]} 2. d4 {[%clk 0:02:42.8]}
2... Nf6 {[%clk 0:03:00.5]} 3. Nc3 {[%clk 0:02:42.6]} 3... e5 {[%clk 0:03:01.1]}
4. dxe5 {[%clk 0:02:41.4]} 4... dxe5 {[%clk 0:03:02]} 5. Qxd8+ {[%clk
0:02:41.2]} 5... Kxd8 {[%clk 0:03:02.9]} 6. Bd2 {[%clk 0:02:41.1]} 6... Be6
{[%clk 0:03:03]} 7. Nf3 {[%clk 0:02:40.1]} 7... Nbd7 {[%clk 0:03:00.9]} 8. Ng5
{[%clk 0:02:40.1]} 8... Bd6 {[%clk 0:02:56.8]} 9. Nxe6+ {[%clk 0:02:37.1]} 9...
fxe6 {[%clk 0:02:57.7]} 10. Be2 {[%clk 0:02:31.2]} 10... Ke7 {[%clk 0:02:57.7]}
11. h4 {[%clk 0:02:28.8]} 11... a6 {[%clk 0:02:57.1]} 12. g4 {[%clk 0:02:19]}
12... Nc5 {[%clk 0:02:37.6]} 13. f3 {[%clk 0:02:12.4]} 13... b5 {[%clk
0:02:37.5]} 14. h5 {[%clk 0:02:09.8]} 14... Nfd7 {[%clk 0:02:16.6]} 15. Bg5+
{[%clk 0:02:06.8]} 15... Kf7 {[%clk 0:02:13.7]} 16. O-O-O {[%clk 0:02:05.4]}
16... Nb6 {[%clk 0:02:01.8]} 17. b3 {[%clk 0:02:01.3]} 17... Rhf8 {[%clk
0:01:47.9]} 18. Be3 {[%clk 0:01:58.8]} 18... Kg8 {[%clk 0:01:44.2]} 19. h6
{[%clk 0:01:47.6]} 19... g6 {[%clk 0:01:42.2]} 20. Rd2 {[%clk 0:01:39.4]} 20...
Nc8 {[%clk 0:01:19.2]} 21. Bxc5 {[%clk 0:01:34.6]} 21... Bxc5 {[%clk 0:01:18.9]}
22. Rd7 {[%clk 0:01:35.3]} 22... Bd6 {[%clk 0:01:06.1]} 23. Rg7+ {[%clk
0:01:34.8]} 23... Kh8 {[%clk 0:01:05.9]} 24. a4 {[%clk 0:01:30]} 24... b4 {[%clk
0:00:57.6]} 25. Nd1 {[%clk 0:01:30]} 25... Re8 {[%clk 0:00:56.8]} 26. Ne3 {[%clk
0:01:28.9]} 26... Be7 {[%clk 0:00:48.3]} 27. Nc4 {[%clk 0:01:27.4]} 27... Nd6
{[%clk 0:00:41.1]} 28. Nxe5 {[%clk 0:01:19.2]} 28... Bg5+ {[%clk 0:00:36.7]} 29.
Kb1 {[%clk 0:01:14.7]} 29... Bf6 {[%clk 0:00:18.7]} 30. Nf7+ {[%clk 0:01:14.8]}
30... Nxf7 {[%clk 0:00:19.4]} 31. Rxf7 {[%clk 0:01:15.3]} 31... Be5 {[%clk
0:00:18.2]} 32. f4 {[%clk 0:01:15.6]} 32... Bd6 {[%clk 0:00:17.6]} 33. e5 {[%clk
0:01:15.5]} 33... Be7 {[%clk 0:00:18.1]} 34. a5 {[%clk 0:01:13.8]} 34... Kg8
{[%clk 0:00:12.3]} 35. Rg7+ {[%clk 0:01:13.9]} 35... Kh8 {[%clk 0:00:12.3]} 36.
Bc4 {[%clk 0:01:14.6]} 36... Rad8 {[%clk 0:00:10.5]} 37. Bxa6 {[%clk 0:01:09.8]}
37... Ra8 {[%clk 0:00:10.2]} 38. Bb5 {[%clk 0:01:10]} 38... Rxa5 {[%clk
0:00:10.9]} 39. Bxe8 {[%clk 0:01:09.4]} 1-0

[Event "Early-Titled-Tuesday-Blitz-September-05-2023"]
[Site "Chess.com"]
[Date "2023.09.05"]
[Round "7"]
[White "FARIZA2018"]
[Black "Goi_Manne"]
[Result "1-0"]
[WhiteElo "2530"]
[BlackElo "2319"]
[TimeControl "180+1"]
[EndTime "9:15:50 PDT"]
[Termination "FARIZA2018 won by resignation"]

1. e4 {[%clk 0:03:00.9]} 1... c6 {[%clk 0:03:00.1]} 2. d4 {[%clk 0:03:00.8]}
2... d5 {[%clk 0:03:01]} 3. Nc3 {[%clk 0:03:00.4]} 3... dxe4 {[%clk 0:03:01.2]}
4. Nxe4 {[%clk 0:03:00.6]} 4... Nf6 {[%clk 0:03:02]} 5. Qd3 {[%clk 0:03:00.4]}
5... Nxe4 {[%clk 0:03:00.9]} 6. Qxe4 {[%clk 0:03:00.5]} 6... Qd5 {[%clk
0:03:01.4]} 7. Qe3 {[%clk 0:02:58]} 7... Qe6 {[%clk 0:03:01.1]} 8. Nf3 {[%clk
0:02:57.6]} 8... Qxe3+ {[%clk 0:03:00.5]} 9. Bxe3 {[%clk 0:02:57.5]} 9... Bf5
{[%clk 0:02:59.9]} 10. c4 {[%clk 0:02:57.1]} 10... e6 {[%clk 0:02:58.1]} 11. a3
{[%clk 0:02:55.4]} 11... Nd7 {[%clk 0:02:55.3]} 12. Be2 {[%clk 0:02:55.5]} 12...
Bd6 {[%clk 0:02:54.9]} 13. O-O {[%clk 0:02:55.5]} 13... O-O {[%clk 0:02:55.6]}
14. Rfd1 {[%clk 0:02:49.9]} 14... Rfd8 {[%clk 0:02:52.8]} 15. Rac1 {[%clk
0:02:43.3]} 15... c5 {[%clk 0:02:51.7]} 16. dxc5 {[%clk 0:02:25.1]} 16... Nxc5
{[%clk 0:02:38.3]} 17. Rxd6 {[%clk 0:02:23]} 17... Rxd6 {[%clk 0:02:38.2]} 18.
Bxc5 {[%clk 0:02:23]} 18... Rc6 {[%clk 0:02:38.4]} 19. b4 {[%clk 0:02:22]} 19...
b6 {[%clk 0:02:36.8]} 20. Be3 {[%clk 0:02:20.5]} 20... Rc7 {[%clk 0:02:23.5]}
21. Bf4 {[%clk 0:02:17.5]} 21... Rd7 {[%clk 0:02:20.4]} 22. Ne5 {[%clk
0:02:15.3]} 22... Rd4 {[%clk 0:02:19.4]} 23. Be3 {[%clk 0:02:15.4]} 23... Rdd8
{[%clk 0:01:59.4]} 24. c5 {[%clk 0:02:15.3]} 24... bxc5 {[%clk 0:01:59.6]} 25.
bxc5 {[%clk 0:02:13.9]} 25... f6 {[%clk 0:02:00.2]} 26. Nc6 {[%clk 0:02:12.1]}
26... Rd7 {[%clk 0:01:58.4]} 27. Nd4 {[%clk 0:02:10.3]} 27... Be4 {[%clk
0:01:34.9]} 28. Nxe6 {[%clk 0:02:08.7]} 28... Kf7 {[%clk 0:01:30]} 29. c6 {[%clk
0:01:45.2]} 29... Bxc6 {[%clk 0:00:55.5]} 30. Rxc6 {[%clk 0:01:44.7]} 30... g5
{[%clk 0:00:50.8]} 31. h3 {[%clk 0:01:43.4]} 31... Kg6 {[%clk 0:00:49.1]} 32.
Nc5 {[%clk 0:01:40.4]} 32... Re7 {[%clk 0:00:48.3]} 33. Bd3+ {[%clk 0:01:40.5]}
33... Kg7 {[%clk 0:00:48.3]} 34. Ne6+ {[%clk 0:01:38.7]} 34... Kh6 {[%clk
0:00:47.8]} 35. Nd4 {[%clk 0:01:33.4]} 35... Rd7 {[%clk 0:00:38.6]} 36. Nf5+
{[%clk 0:01:30.7]} 36... Kg6 {[%clk 0:00:38.9]} 37. Be4 {[%clk 0:01:28.6]} 37...
Rd1+ {[%clk 0:00:37.2]} 38. Kh2 {[%clk 0:01:28.5]} 38... Kf7 {[%clk 0:00:37.5]}
39. Rc7+ {[%clk 0:01:25.6]} 39... Kg8 {[%clk 0:00:37.6]} 40. Nh6+ {[%clk
0:01:24.5]} 40... Kf8 {[%clk 0:00:35.9]} 41. Bc5+ {[%clk 0:01:15.7]} 41... Ke8
{[%clk 0:00:35.4]} 42. Re7+ {[%clk 0:01:15.2]} 42... Kd8 {[%clk 0:00:35.6]} 43.
Nf7+ {[%clk 0:01:15.6]} 43... Kc8 {[%clk 0:00:35.2]} 44. Bf5+ {[%clk 0:01:12.6]}
44... Kb8 {[%clk 0:00:32.4]} 45. Bd6+ {[%clk 0:01:11.7]} 45... Rxd6 {[%clk
0:00:32]} 46. Nxd6 {[%clk 0:01:12]} 1-0

[Event "Early-Titled-Tuesday-Blitz-September-05-2023"]
[Site "Chess.com"]
[Date "2023.09.05"]
[Round "7"]
[White "tk22h"]
[Black "MikeSailer"]
[Result "1-0"]
[WhiteElo "2384"]
[BlackElo "2169"]
[TimeControl "180+1"]
[EndTime "9:15:50 PDT"]
[Termination "tk22h won on time"]

1. d4 {[%clk 0:03:00.9]} 1... d5 {[%clk 0:02:57.2]} 2. Nf3 {[%clk 0:03:00.4]}
2... Nf6 {[%clk 0:02:56.4]} 3. c4 {[%clk 0:03:00.1]} 3... Bf5 {[%clk 0:02:47.9]}
4. Nc3 {[%clk 0:02:58.4]} 4... e6 {[%clk 0:02:44.9]} 5. Bg5 {[%clk 0:02:57.3]}
5... Be7 {[%clk 0:02:42]} 6. Bxf6 {[%clk 0:02:54.3]} 6... Bxf6 {[%clk
0:02:40.9]} 7. cxd5 {[%clk 0:02:54.5]} 7... exd5 {[%clk 0:02:39.9]} 8. Qb3
{[%clk 0:02:54.4]} 8... Be4 {[%clk 0:02:12.8]} 9. e3 {[%clk 0:02:48]} 9... O-O
{[%clk 0:02:07.9]} 10. Qxb7 {[%clk 0:02:46.9]} 10... Bxf3 {[%clk 0:01:51.3]} 11.
gxf3 {[%clk 0:02:46.6]} 11... Nd7 {[%clk 0:01:47.3]} 12. Qxd5 {[%clk 0:02:46.1]}
12... Qe7 {[%clk 0:01:43.2]} 13. Bd3 {[%clk 0:02:43.2]} 13... Rab8 {[%clk
0:01:40.5]} 14. Rb1 {[%clk 0:02:41.7]} 14... Nb6 {[%clk 0:01:38.3]} 15. Qe4
{[%clk 0:02:41.4]} 15... Qxe4 {[%clk 0:01:37.4]} 16. Nxe4 {[%clk 0:02:40.1]}
16... Be7 {[%clk 0:01:35.2]} 17. Ke2 {[%clk 0:02:40.3]} 17... Na4 {[%clk
0:01:34.7]} 18. b3 {[%clk 0:02:39.4]} 18... f5 {[%clk 0:01:33.9]} 19. bxa4
{[%clk 0:02:38.9]} 19... fxe4 {[%clk 0:01:34.3]} 20. Bxe4 {[%clk 0:02:39.2]}
20... c5 {[%clk 0:01:21.9]} 21. dxc5 {[%clk 0:02:31.6]} 21... Bxc5 {[%clk
0:01:22.3]} 22. Rb5 {[%clk 0:02:31.7]} 22... Bd6 {[%clk 0:01:00.4]} 23. h3
{[%clk 0:02:22.3]} 23... Rb6 {[%clk 0:00:49.1]} 24. Rhb1 {[%clk 0:02:21]} 24...
Rfb8 {[%clk 0:00:48.3]} 25. Bd3 {[%clk 0:02:20.1]} 25... Kf7 {[%clk 0:00:40.4]}
26. Rxb6 {[%clk 0:02:20.1]} 26... Rxb6 {[%clk 0:00:40.2]} 27. Rxb6 {[%clk
0:02:20]} 27... axb6 {[%clk 0:00:40.1]} 28. f4 {[%clk 0:02:07]} 28... Bb4 {[%clk
0:00:35.7]} 29. Kf3 {[%clk 0:02:06.8]} 29... h6 {[%clk 0:00:30.7]} 30. e4 {[%clk
0:02:06.2]} 30... Kf6 {[%clk 0:00:28.4]} 31. e5+ {[%clk 0:02:05.9]} 31... Ke7
{[%clk 0:00:29]} 32. Ke4 {[%clk 0:02:04.9]} 32... Be1 {[%clk 0:00:27.6]} 33. f3
{[%clk 0:02:05]} 33... Bc3 {[%clk 0:00:20.8]} 34. Kf5 {[%clk 0:02:04.2]} 34...
Bd2 {[%clk 0:00:19.7]} 35. Bc4 {[%clk 0:02:03.7]} 35... Bc1 {[%clk 0:00:19.4]}
36. Bb3 {[%clk 0:02:03.5]} 36... Bd2 {[%clk 0:00:19.5]} 37. h4 {[%clk
0:02:03.3]} 37... Bc1 {[%clk 0:00:17.9]} 38. h5 {[%clk 0:02:03.3]} 38... Bd2
{[%clk 0:00:18.6]} 39. Ke4 {[%clk 0:02:02.8]} 39... Bc1 {[%clk 0:00:18.9]} 40.
f5 {[%clk 0:02:03]} 40... Bd2 {[%clk 0:00:17.4]} 41. Kd5 {[%clk 0:02:03.1]}
41... Be3 {[%clk 0:00:17.4]} 42. Kc6 {[%clk 0:02:00.2]} 42... Bd4 {[%clk
0:00:16.2]} 43. f4 {[%clk 0:01:59.2]} 43... Be3 {[%clk 0:00:16.6]} 44. Bc4
{[%clk 0:01:50.5]} 44... Bxf4 {[%clk 0:00:05.1]} 45. Kxb6 {[%clk 0:01:50.1]}
45... Bxe5 {[%clk 0:00:05.5]} 46. a5 {[%clk 0:01:49.2]} 46... Kd8 {[%clk
0:00:04.4]} 47. Kb7 {[%clk 0:01:48.3]} 47... Bd4 {[%clk 0:00:01.6]} 48. a6
{[%clk 0:01:48.3]} 1-0

[Event "Early-Titled-Tuesday-Blitz-September-05-2023"]
[Site "Chess.com"]
[Date "2023.09.05"]
[Round "7"]
[White "ElenaPershina"]
[Black "Magila31"]
[Result "0-1"]
[WhiteElo "2314"]
[BlackElo "2427"]
[TimeControl "180+1"]
[EndTime "9:15:53 PDT"]
[Termination "Magila31 won by resignation"]

1. c4 {[%clk 0:03:00.9]} 1... g6 {[%clk 0:02:59]} 2. g3 {[%clk 0:03:00.1]} 2...
Bg7 {[%clk 0:02:58.9]} 3. Bg2 {[%clk 0:03:00]} 3... Nf6 {[%clk 0:02:58.8]} 4.
Nc3 {[%clk 0:03:00.1]} 4... O-O {[%clk 0:02:58.7]} 5. d4 {[%clk 0:02:59.9]} 5...
d6 {[%clk 0:02:57.3]} 6. h3 {[%clk 0:03:00.4]} 6... c6 {[%clk 0:02:54.1]} 7. e4
{[%clk 0:02:57.8]} 7... Qa5 {[%clk 0:02:49.9]} 8. Ne2 {[%clk 0:02:56.2]} 8...
Nbd7 {[%clk 0:02:46.4]} 9. O-O {[%clk 0:02:55.3]} 9... e5 {[%clk 0:02:39.6]} 10.
Be3 {[%clk 0:02:53.3]} 10... Qa6 {[%clk 0:02:35.9]} 11. b3 {[%clk 0:02:50.5]}
11... b5 {[%clk 0:02:35]} 12. cxb5 {[%clk 0:01:56.7]} 12... cxb5 {[%clk
0:02:34.4]} 13. f4 {[%clk 0:01:48.3]} 13... b4 {[%clk 0:02:30.2]} 14. fxe5
{[%clk 0:01:40.2]} 14... dxe5 {[%clk 0:02:26.5]} 15. Nd5 {[%clk 0:01:32]} 15...
Nxd5 {[%clk 0:02:22.5]} 16. exd5 {[%clk 0:01:32.9]} 16... e4 {[%clk 0:02:15.5]}
17. Bxe4 {[%clk 0:01:21.8]} 17... Nf6 {[%clk 0:02:14.8]} 18. Bg2 {[%clk
0:01:19.8]} 18... Re8 {[%clk 0:02:11.1]} 19. Qd2 {[%clk 0:01:11.4]} 19... Ne4
{[%clk 0:02:06.2]} 20. Qc2 {[%clk 0:01:02.2]} 20... Bf5 {[%clk 0:02:03]} 21. g4
{[%clk 0:00:56.1]} 21... Rac8 {[%clk 0:01:57.6]} 22. Qb2 {[%clk 0:00:39.1]}
22... Bd7 {[%clk 0:01:48.4]} 23. Rae1 {[%clk 0:00:36.1]} 23... Bb5 {[%clk
0:01:32.2]} 24. Nf4 {[%clk 0:00:26.9]} 24... Bxf1 {[%clk 0:01:29.7]} 25. Bxf1
{[%clk 0:00:27.8]} 25... Qd6 {[%clk 0:01:21.9]} 26. Bc4 {[%clk 0:00:19.9]} 26...
Nc3 {[%clk 0:01:15.2]} 27. Qf2 {[%clk 0:00:16.7]} 27... Re7 {[%clk 0:01:13.3]}
28. Bd2 {[%clk 0:00:13.7]} 28... Rce8 {[%clk 0:01:11.3]} 29. Rxe7 {[%clk
0:00:12.7]} 29... Rxe7 {[%clk 0:01:10.8]} 30. Kg2 {[%clk 0:00:13.1]} 30... a5
{[%clk 0:01:04.5]} 31. Be3 {[%clk 0:00:11.8]} 31... a4 {[%clk 0:00:55.6]} 32.
Nd3 {[%clk 0:00:11.3]} 32... Nd1 {[%clk 0:00:51.2]} 33. Qf4 {[%clk 0:00:08.6]}
33... Nxe3+ {[%clk 0:00:50.4]} 0-1

[Event "Early-Titled-Tuesday-Blitz-September-05-2023"]
[Site "Chess.com"]
[Date "2023.09.05"]
[Round "7"]
[White "jeetjain"]
[Black "masterofpuppets2"]
[Result "0-1"]
[WhiteElo "2599"]
[BlackElo "2475"]
[TimeControl "180+1"]
[EndTime "9:15:56 PDT"]
[Termination "masterofpuppets2 won by resignation"]

1. d4 {[%clk 0:03:00.9]} 1... Nf6 {[%clk 0:02:59.9]} 2. Nf3 {[%clk 0:02:58.3]}
2... g6 {[%clk 0:02:59.6]} 3. Nbd2 {[%clk 0:02:52.6]} 3... c5 {[%clk 0:02:58.2]}
4. c3 {[%clk 0:02:44.5]} 4... d6 {[%clk 0:02:38.3]} 5. e4 {[%clk 0:02:41.9]}
5... Bg7 {[%clk 0:02:36.6]} 6. Bd3 {[%clk 0:02:40]} 6... O-O {[%clk 0:02:36]} 7.
O-O {[%clk 0:02:40]} 7... Qc7 {[%clk 0:02:31.3]} 8. Qe2 {[%clk 0:02:34.1]} 8...
b6 {[%clk 0:02:27.5]} 9. a3 {[%clk 0:02:31]} 9... Bb7 {[%clk 0:02:25.7]} 10. b4
{[%clk 0:02:26.9]} 10... e5 {[%clk 0:02:15.4]} 11. Bb2 {[%clk 0:02:23.2]} 11...
Nc6 {[%clk 0:01:56.2]} 12. Nc4 {[%clk 0:02:15]} 12... Nh5 {[%clk 0:01:46.2]} 13.
b5 {[%clk 0:02:11]} 13... Ne7 {[%clk 0:01:43.7]} 14. dxe5 {[%clk 0:02:09.8]}
14... Nf4 {[%clk 0:01:42.8]} 15. Qc2 {[%clk 0:02:08.3]} 15... dxe5 {[%clk
0:01:42]} 16. g3 {[%clk 0:02:07.3]} 16... Nxd3 {[%clk 0:01:32.8]} 17. Qxd3
{[%clk 0:02:08.2]} 17... Rad8 {[%clk 0:01:13.4]} 18. Qe2 {[%clk 0:02:07.7]}
18... h6 {[%clk 0:01:06.5]} 19. Nfd2 {[%clk 0:02:03.4]} 19... f5 {[%clk
0:01:05.7]} 20. exf5 {[%clk 0:02:01.8]} 20... gxf5 {[%clk 0:01:03.7]} 21. f4
{[%clk 0:01:59.4]} 21... exf4 {[%clk 0:00:57.2]} 22. Rxf4 {[%clk 0:01:59.1]}
22... Ng6 {[%clk 0:00:55.5]} 23. Qe6+ {[%clk 0:01:56.8]} 23... Kh7 {[%clk
0:00:55.3]} 24. Rxf5 {[%clk 0:01:55.8]} 24... Rxf5 {[%clk 0:00:30.3]} 25. Qxf5
{[%clk 0:01:55.5]} 25... Qe7 {[%clk 0:00:22.2]} 26. Rf1 {[%clk 0:01:44]} 26...
Rf8 {[%clk 0:00:20.6]} 27. Qd3 {[%clk 0:01:44]} 27... Rd8 {[%clk 0:00:19.7]} 28.
Qf5 {[%clk 0:01:40.3]} 28... Rf8 {[%clk 0:00:19.7]} 29. Qg4 {[%clk 0:01:34.7]}
29... Rxf1+ {[%clk 0:00:15.3]} 30. Nxf1 {[%clk 0:01:34.8]} 30... Qe1 {[%clk
0:00:12.2]} 31. Ne3 {[%clk 0:01:31.4]} 31... Qb1 {[%clk 0:00:05.7]} 32. Qd7
{[%clk 0:01:24.5]} 32... Be4 {[%clk 0:00:05.2]} 33. Qd2 {[%clk 0:01:22.7]} 33...
Ne5 {[%clk 0:00:03]} 34. a4 {[%clk 0:01:18]} 34... Nf3+ {[%clk 0:00:03]} 35. Kf2
{[%clk 0:01:17.4]} 35... Nxd2 {[%clk 0:00:03.9]} 36. Nxd2 {[%clk 0:01:18.3]}
36... Qxb2 {[%clk 0:00:04.3]} 37. Ke1 {[%clk 0:01:18.7]} 37... Qxc3 {[%clk
0:00:04.2]} 38. Nc4 {[%clk 0:01:16.5]} 38... Bd3 {[%clk 0:00:03.6]} 39. Kd1
{[%clk 0:01:16.8]} 39... Bxc4 {[%clk 0:00:03.9]} 40. Ne4 {[%clk 0:01:17.7]}
40... Qd3+ {[%clk 0:00:04.2]} 0-1

[Event "Early-Titled-Tuesday-Blitz-September-05-2023"]
[Site "Chess.com"]
[Date "2023.09.05"]
[Round "7"]
[White "TatjanaVasilevich"]
[Black "DKmirl"]
[Result "1-0"]
[WhiteElo "2446"]
[BlackElo "2261"]
[TimeControl "180+1"]
[EndTime "9:15:56 PDT"]
[Termination "TatjanaVasilevich won by checkmate"]

1. d4 {[%clk 0:02:50.4]} 1... Nf6 {[%clk 0:02:58.9]} 2. c4 {[%clk 0:02:49.3]}
2... e6 {[%clk 0:02:59]} 3. Nc3 {[%clk 0:02:40.7]} 3... Bb4 {[%clk 0:02:53.2]}
4. Bg5 {[%clk 0:02:40.1]} 4... h6 {[%clk 0:02:53.2]} 5. Bxf6 {[%clk 0:02:38.6]}
5... Qxf6 {[%clk 0:02:53.1]} 6. a3 {[%clk 0:02:39.3]} 6... Bxc3+ {[%clk
0:02:52.2]} 7. bxc3 {[%clk 0:02:40.1]} 7... O-O {[%clk 0:02:52.4]} 8. e4 {[%clk
0:02:40.1]} 8... d6 {[%clk 0:02:52.1]} 9. g3 {[%clk 0:02:40.4]} 9... b6 {[%clk
0:02:48.7]} 10. Bg2 {[%clk 0:02:39.8]} 10... e5 {[%clk 0:02:48.6]} 11. d5 {[%clk
0:02:39.8]} 11... Ba6 {[%clk 0:02:47.5]} 12. Qa4 {[%clk 0:02:39]} 12... Qe7
{[%clk 0:02:40.1]} 13. Nf3 {[%clk 0:02:34.5]} 13... Qd7 {[%clk 0:02:39.7]} 14.
Qxd7 {[%clk 0:02:34.1]} 14... Nxd7 {[%clk 0:02:39.1]} 15. Nd2 {[%clk 0:02:34.7]}
15... Nc5 {[%clk 0:02:38]} 16. O-O {[%clk 0:02:34.7]} 16... Nb7 {[%clk
0:02:31.2]} 17. Rfb1 {[%clk 0:02:29.7]} 17... Nc5 {[%clk 0:02:21.4]} 18. f4
{[%clk 0:02:25.3]} 18... Rfe8 {[%clk 0:02:15.2]} 19. f5 {[%clk 0:02:24.3]} 19...
g6 {[%clk 0:01:59.4]} 20. g4 {[%clk 0:02:23.7]} 20... Kg7 {[%clk 0:01:57.6]} 21.
Kf2 {[%clk 0:02:23.7]} 21... gxf5 {[%clk 0:01:24.8]} 22. gxf5 {[%clk 0:02:21.9]}
22... Kf6 {[%clk 0:01:24.9]} 23. Ke3 {[%clk 0:02:16.2]} 23... Rg8 {[%clk
0:01:24.1]} 24. Bf3 {[%clk 0:02:16.6]} 24... Rg5 {[%clk 0:01:17.5]} 25. h4
{[%clk 0:02:15.8]} 25... Rg3 {[%clk 0:01:16.7]} 26. Rg1 {[%clk 0:02:04.3]} 26...
Rag8 {[%clk 0:01:13.1]} 27. Rxg3 {[%clk 0:02:04.5]} 27... Rxg3 {[%clk 0:01:14]}
28. Kf2 {[%clk 0:02:04.9]} 28... Rg8 {[%clk 0:01:07.6]} 29. a4 {[%clk
0:01:54.2]} 29... Nb7 {[%clk 0:01:03.3]} 30. Be2 {[%clk 0:01:51.6]} 30... Na5
{[%clk 0:00:58.4]} 31. Rb1 {[%clk 0:01:31.2]} 31... Nb7 {[%clk 0:00:40.8]} 32.
Nb3 {[%clk 0:01:26.2]} 32... Ke7 {[%clk 0:00:21.9]} 33. a5 {[%clk 0:01:25.7]}
33... Nxa5 {[%clk 0:00:19.1]} 34. Nxa5 {[%clk 0:01:24.5]} 34... bxa5 {[%clk
0:00:20]} 35. Ra1 {[%clk 0:01:25.1]} 35... Rb8 {[%clk 0:00:18.7]} 36. Rxa5
{[%clk 0:01:24.9]} 36... Bc8 {[%clk 0:00:17.2]} 37. Rxa7 {[%clk 0:01:24.5]}
37... Rb7 {[%clk 0:00:16.4]} 38. Ra8 {[%clk 0:01:20]} 38... Kd8 {[%clk 0:00:16]}
39. f6 {[%clk 0:01:19.6]} 39... Rb2 {[%clk 0:00:13.8]} 40. Ke3 {[%clk
0:01:19.4]} 40... Rc2 {[%clk 0:00:08]} 41. Bg4 {[%clk 0:01:18.9]} 41... Rxc3+
{[%clk 0:00:08.3]} 42. Kd2 {[%clk 0:01:19.1]} 42... Rxc4 {[%clk 0:00:08.6]} 43.
Rxc8# {[%clk 0:01:18.7]} 1-0

[Event "Early-Titled-Tuesday-Blitz-September-05-2023"]
[Site "Chess.com"]
[Date "2023.09.05"]
[Round "7"]
[White "Just_Lucky_1"]
[Black "stepanosinovsky"]
[Result "1-0"]
[WhiteElo "2525"]
[BlackElo "2317"]
[TimeControl "180+1"]
[EndTime "9:15:59 PDT"]
[Termination "Just_Lucky_1 won by resignation"]

1. e4 {[%clk 0:02:28.2]} 1... e5 {[%clk 0:02:58.7]} 2. Nf3 {[%clk 0:02:27]} 2...
Nc6 {[%clk 0:02:53.7]} 3. Bb5 {[%clk 0:02:27.4]} 3... a6 {[%clk 0:02:50.6]} 4.
Ba4 {[%clk 0:02:27.4]} 4... Nf6 {[%clk 0:02:45.2]} 5. O-O {[%clk 0:02:26.8]}
5... Be7 {[%clk 0:02:45.5]} 6. Re1 {[%clk 0:02:26.5]} 6... b5 {[%clk 0:02:45.4]}
7. Bb3 {[%clk 0:02:26.8]} 7... O-O {[%clk 0:02:46.3]} 8. a4 {[%clk 0:02:25.4]}
8... Bb7 {[%clk 0:02:40.1]} 9. d3 {[%clk 0:02:20.9]} 9... d5 {[%clk 0:02:36.3]}
10. exd5 {[%clk 0:02:20.1]} 10... Nxd5 {[%clk 0:02:37.2]} 11. axb5 {[%clk
0:02:16.9]} 11... axb5 {[%clk 0:02:35.6]} 12. Rxa8 {[%clk 0:02:17.8]} 12... Bxa8
{[%clk 0:02:32.8]} 13. Nxe5 {[%clk 0:02:16.1]} 13... Nd4 {[%clk 0:02:32.7]} 14.
c3 {[%clk 0:02:04.1]} 14... Nxb3 {[%clk 0:02:28.8]} 15. Qxb3 {[%clk 0:02:05]}
15... Bd6 {[%clk 0:02:24.6]} 16. Nf3 {[%clk 0:02:04.6]} 16... Nf4 {[%clk
0:01:44.3]} 17. Bxf4 {[%clk 0:01:52.9]} 17... Bxf4 {[%clk 0:01:42.9]} 18. Qb4
{[%clk 0:01:50.6]} 18... Bd6 {[%clk 0:01:05.8]} 19. Qh4 {[%clk 0:01:50.2]} 19...
f6 {[%clk 0:00:42.2]} 20. Nd4 {[%clk 0:01:47.2]} 20... Re8 {[%clk 0:00:36.2]}
21. Rxe8+ {[%clk 0:01:28.2]} 21... Qxe8 {[%clk 0:00:35.7]} 22. Kf1 {[%clk
0:01:29.1]} 22... Qe5 {[%clk 0:00:18.8]} 23. Nd2 {[%clk 0:01:24.6]} 23... b4
{[%clk 0:00:16.5]} 24. Qg4 {[%clk 0:01:04.4]} 24... Bb7 {[%clk 0:00:10.5]} 25.
Qe6+ {[%clk 0:00:40.1]} 25... Qxe6 {[%clk 0:00:09.1]} 26. Nxe6 {[%clk 0:00:41]}
26... bxc3 {[%clk 0:00:08.4]} 27. bxc3 {[%clk 0:00:41.9]} 27... Kf7 {[%clk
0:00:06.7]} 28. Nd8+ {[%clk 0:00:40.7]} 1-0

[Event "Early-Titled-Tuesday-Blitz-September-05-2023"]
[Site "Chess.com"]
[Date "2023.09.05"]
[Round "7"]
[White "Tsyhanchuk_Stanislav"]
[Black "Karttunen"]
[Result "0-1"]
[WhiteElo "2415"]
[BlackElo "2587"]
[TimeControl "180+1"]
[EndTime "9:16:02 PDT"]
[Termination "Karttunen won by checkmate"]

1. e4 {[%clk 0:03:00.9]} 1... e6 {[%clk 0:03:00.4]} 2. d4 {[%clk 0:02:59.8]}
2... d5 {[%clk 0:03:01]} 3. Nc3 {[%clk 0:03:00]} 3... Bb4 {[%clk 0:03:00.3]} 4.
e5 {[%clk 0:02:58]} 4... c5 {[%clk 0:02:59.5]} 5. a3 {[%clk 0:02:57.5]} 5...
Bxc3+ {[%clk 0:02:59.4]} 6. bxc3 {[%clk 0:02:57.4]} 6... Qa5 {[%clk 0:02:59.9]}
7. Bd2 {[%clk 0:02:50.4]} 7... Qa4 {[%clk 0:02:57.8]} 8. Qg4 {[%clk 0:02:46.2]}
8... g6 {[%clk 0:02:48.1]} 9. h4 {[%clk 0:02:45.9]} 9... h5 {[%clk 0:02:45.9]}
10. Qf3 {[%clk 0:02:44.7]} 10... c4 {[%clk 0:02:39.1]} 11. Nh3 {[%clk
0:02:43.5]} 11... Nc6 {[%clk 0:02:31.3]} 12. Ng5 {[%clk 0:02:42.4]} 12... Nd8
{[%clk 0:02:29]} 13. Ra2 {[%clk 0:02:34.4]} 13... Bd7 {[%clk 0:02:26.7]} 14. Be2
{[%clk 0:02:33.8]} 14... Bc6 {[%clk 0:02:25.7]} 15. O-O {[%clk 0:02:31.7]} 15...
Rc8 {[%clk 0:02:24.7]} 16. Nh3 {[%clk 0:02:17.2]} 16... Rc7 {[%clk 0:02:22.6]}
17. Bg5 {[%clk 0:02:17.3]} 17... b6 {[%clk 0:02:08.7]} 18. Bf6 {[%clk
0:02:13.3]} 18... Nxf6 {[%clk 0:02:01.2]} 19. Qxf6 {[%clk 0:01:59.3]} 19... Rg8
{[%clk 0:01:59.6]} 20. Ng5 {[%clk 0:01:44.2]} 20... Kd7 {[%clk 0:01:43.1]} 21.
Nxf7 {[%clk 0:01:30.4]} 21... Rf8 {[%clk 0:01:42.9]} 22. Qxg6 {[%clk 0:01:07.1]}
22... Rxf7 {[%clk 0:01:40.7]} 23. Bxh5 {[%clk 0:01:07.1]} 23... Kc8 {[%clk
0:01:38.7]} 24. f4 {[%clk 0:00:58.8]} 24... Rg7 {[%clk 0:01:32.6]} 25. Qh6
{[%clk 0:00:58.1]} 25... Be8 {[%clk 0:01:32]} 26. f5 {[%clk 0:00:39.6]} 26...
Rh7 {[%clk 0:01:27]} 27. Bxe8 {[%clk 0:00:35.4]} 27... Qxe8 {[%clk 0:01:27]} 28.
Qf4 {[%clk 0:00:30.9]} 28... exf5 {[%clk 0:01:24.3]} 29. Qxf5+ {[%clk
0:00:31.8]} 29... Ne6 {[%clk 0:01:24]} 30. g3 {[%clk 0:00:23.2]} 30... Rcg7
{[%clk 0:01:23.1]} 31. Kh2 {[%clk 0:00:22.3]} 31... Qg8 {[%clk 0:01:10.6]} 32.
Rf3 {[%clk 0:00:18.6]} 32... Kb7 {[%clk 0:01:04.6]} 33. a4 {[%clk 0:00:14.9]}
33... a5 {[%clk 0:01:03.2]} 34. Ra1 {[%clk 0:00:14.1]} 34... Ka6 {[%clk
0:01:02.1]} 35. Raf1 {[%clk 0:00:14.5]} 35... Ng5 {[%clk 0:00:58.1]} 36. Rf4
{[%clk 0:00:12.7]} 36... Ne4 {[%clk 0:00:58.3]} 37. Rxe4 {[%clk 0:00:08.8]}
37... dxe4 {[%clk 0:00:57.7]} 38. Qxe4 {[%clk 0:00:09.3]} 38... Rxg3 {[%clk
0:00:56.4]} 39. e6 {[%clk 0:00:09.1]} 39... Rg4 {[%clk 0:00:55]} 40. Rf4 {[%clk
0:00:05]} 40... Rhxh4# {[%clk 0:00:54.3]} 0-1